Workbook

Sheet Интеграл (1)
D1: № п/п | G1: x | H1: y | K1: № | L1: X1 | M1: Y1 | N1: Площадь трапеции | O1: Интеграл (ряд 1)
A2: № п/п | D2: 1 | E2: 0.9 | F2: 3.68 | G2: 0 | H2: =E2*F2 -> 3.312 | I2: 3.96 | J2: 0 | K2: 1 | L2: =$G$2 -> 0 | M2: =FORECAST(L2,OFFSET($H$1,MATCH(L2,$G$2:$G$7),,2),OFFSET($G$1,MATCH(L2,$G$2:$G$7),,2)) -> 3.312 | O2: =SUM(N:N) -> 7.396073051
A3: 1 | B3: 0.95 | D3: =D2+1 -> 2 | E3: 0.92 | F3: 3.65 | G3: =J3/60 -> 0.01666666667 | H3: =E3*F3 -> 3.358 | J3: 1 | K3: 2 | L3: =L2+0.03 -> 0.03 | M3: =FORECAST(L3,OFFSET($H$1,MATCH(L3,$G$2:$G$7),,2),OFFSET($G$1,MATCH(L3,$G$2:$G$7),,2)) -> 3.352369524 | N3: =1/2*(M3+M2)*(L3-L2) -> 0.09996554286
A4: =A3+1 -> 2 | B4: 0.93 | D4: =D3+1 -> 3 | E4: 0.88 | F4: 3.48 | G4: 0.7166666667 | H4: 3.0624 | J4: 43 | K4: 3 | L4: =L3+0.03 -> 0.06 | M4: =FORECAST(L4,OFFSET($H$1,MATCH(L4,$G$2:$G$7),,2),OFFSET($G$1,MATCH(L4,$G$2:$G$7),,2)) -> 3.339700952 | N4: =1/2*(M4+M3)*(L4-L3) -> 0.1003810571
A5: =A4+1 -> 3 | B5: 0.9 | D5: 4 | E5: 0.91 | F5: 3.45 | G5: 0.9333333333 | H5: 3.1395 | J5: 56 | K5: 4 | L5: 0.09 | M5: 3.327032381 | N5: 0.100001
A6: 4 | B6: 0.9 | D6: 5 | E6: 0.88 | F6: 3.38 | G6: 1.3 | H6: 2.9744 | J6: 78 | K6: 5 | L6: 0.12 | M6: 3.31436381 | N6: 0.09962094286
A7: 5 | B7: 0.88 | D7: 6 | E7: 0.85 | F7: 3.04 | G7: 2.2 | H7: 2.584 | I7: 3.55 | J7: 132 | K7: 6 | L7: 0.15 | M7: 3.301695238 | N7: 0.09924088571
A8: 6 | B8: 0.9 | D8: 7 | E8: 0.78 | F8: 2.51 | G8: 2.566666667 | H8: 1.9578 | I8: 3.44 | J8: 154 | K8: 7 | L8: 0.18 | M8: 3.289026667 | N8: 0.09886082857
A9: 7 | B9: 0.88 | K9: 8 | L9: 0.21 | M9: 3.276358095 | N9: 0.09848077143
A10: 8 | B10: 0.82 | K10: 9 | L10: 0.24 | M10: 3.263689524 | N10: 0.09810071429
A11: 9 | B11: 0.75 | K11: 10 | L11: 0.27 | M11: 3.251020952 | N11: 0.09772065714
K12: 11 | L12: 0.3 | M12: 3.238352381 | N12: 0.0973406
K13: 12 | L13: 0.33 | M13: 3.22568381 | N13: 0.09696054286
K14: 13 | L14: 0.36 | M14: 3.213015238 | N14: 0.09658048571
K15: 14 | L15: 0.39 | M15: 3.200346667 | N15: 0.09620042857
K16: 15 | L16: 0.42 | M16: 3.187678095 | N16: 0.09582037143
K17: 16 | L17: 0.45 | M17: 3.175009524 | N17: 0.09544031429
K18: 17 | L18: 0.48 | M18: 3.162340952 | N18: 0.09506025714
K19: 18 | L19: 0.51 | M19: 3.149672381 | N19: 0.0946802
K20: 19 | L20: 0.54 | M20: 3.13700381 | N20: 0.09430014286
K21: 20 | L21: 0.57 | M21: 3.124335238 | N21: 0.09392008571
K22: 21 | L22: 0.6 | M22: 3.111666667 | N22: 0.09354002857
K23: 22 | L23: 0.63 | M23: 3.098998095 | N23: 0.09315997143
K24: 23 | L24: 0.66 | M24: 3.086329524 | N24: 0.09277991429
K25: 24 | L25: 0.69 | M25: 3.073660952 | N25: 0.09239985714
K26: 25 | L26: 0.72 | M26: 3.063586154 | N26: 0.09205870659
K27: 26 | L27: 0.75 | M27: 3.074261538 | N27: 0.09206771538
K28: 27 | L28: 0.78 | M28: 3.084936923 | N28: 0.09238797692
K29: 28 | L29: 0.81 | M29: 3.095612308 | N29: 0.09270823846
K30: 29 | L30: 0.84 | M30: 3.106287692 | N30: 0.0930285
K31: 30 | L31: 0.87 | M31: 3.116963077 | N31: 0.09334876154
K32: 31 | L32: 0.9 | M32: 3.127638462 | N32: 0.09366902308
K33: 32 | L33: 0.93 | M33: 3.138313846 | N33: 0.09398928462
K34: 33 | L34: 0.96 | M34: 3.127492727 | N34: 0.0939870986
K35: 34 | L35: 0.99 | M35: 3.113984545 | N35: 0.09362215909
K36: 35 | L36: 1.02 | M36: 3.100476364 | N36: 0.09321691364
K37: 36 | L37: 1.05 | M37: 3.086968182 | N37: 0.09281166818
K38: 37 | L38: 1.08 | M38: 3.07346 | N38: 0.09240642273
K39: 38 | L39: 1.11 | M39: 3.059951818 | N39: 0.09200117727
K40: 39 | L40: 1.14 | M40: 3.046443636 | N40: 0.09159593182
K41: 40 | L41: 1.17 | M41: 3.032935455 | N41: 0.09119068636
K42: 41 | L42: 1.2 | M42: 3.019427273 | N42: 0.09078544091
K43: 42 | L43: 1.23 | M43: 3.005919091 | N43: 0.09038019545
K44: 43 | L44: 1.26 | M44: 2.992410909 | N44: 0.08997495
K45: 44 | L45: 1.29 | M45: 2.978902727 | N45: 0.08956970455
K46: 45 | L46: 1.32 | M46: 2.965724444 | N46: 0.08916940758
K47: 46 | L47: 1.35 | M47: 2.952711111 | N47: 0.08877653333
K48: 47 | L48: 1.38 | M48: 2.939697778 | N48: 0.08838613333
K49: 48 | L49: 1.41 | M49: 2.926684444 | N49: 0.08799573333
K50: 49 | L50: 1.44 | M50: 2.913671111 | N50: 0.08760533333
K51: 50 | L51: 1.47 | M51: 2.900657778 | N51: 0.08721493333
K52: 51 | L52: 1.5 | M52: 2.887644444 | N52: 0.08682453333
K53: 52 | L53: 1.53 | M53: 2.874631111 | N53: 0.08643413333
K54: 53 | L54: 1.56 | M54: 2.861617778 | N54: 0.08604373333
K55: 54 | L55: 1.59 | M55: 2.848604444 | N55: 0.08565333333
K56: 55 | L56: 1.62 | M56: 2.835591111 | N56: 0.08526293333
K57: 56 | L57: 1.65 | M57: 2.822577778 | N57: 0.08487253333
K58: 57 | L58: 1.68 | M58: 2.809564444 | N58: 0.08448213333
K59: 58 | L59: 1.71 | M59: 2.796551111 | N59: 0.08409173333
K60: 59 | L60: 1.74 | M60: 2.783537778 | N60: 0.08370133333
K61: 60 | L61: 1.77 | M61: 2.770524444 | N61: 0.08331093333
K62: 61 | L62: 1.8 | M62: 2.757511111 | N62: 0.08292053333
K63: 62 | L63: 1.83 | M63: 2.744497778 | N63: 0.08253013333
K64: 63 | L64: 1.86 | M64: 2.731484444 | N64: 0.08213973333
K65: 64 | L65: 1.89 | M65: 2.718471111 | N65: 0.08174933333
K66: 65 | L66: 1.92 | M66: 2.705457778 | N66: 0.08135893333
K67: 66 | L67: 1.95 | M67: 2.692444444 | N67: 0.08096853333
K68: 67 | L68: =L67+0.03 -> 1.98 | M68: =FORECAST(L68,OFFSET($H$1,MATCH(L68,$G$2:$G$7),,2),OFFSET($G$1,MATCH(L68,$G$2:$G$7),,2)) -> 2.679431111 | N68: =1/2*(M68+M67)*(L68-L67) -> 0.08057813333
K69: 68 | L69: 2.01 | M69: 2.666417778 | N69: 0.08018773333
K70: 69 | L70: 2.04 | M70: 2.653404444 | N70: 0.07979733333
K71: 70 | L71: 2.07 | M71: 2.640391111 | N71: 0.07940693333
K72: 71 | L72: 2.1 | M72: 2.627377778 | N72: 0.07901653333
K73: 72 | L73: 2.13 | M73: 2.614364444 | N73: 0.07862613333
K74: 73 | L74: 2.16 | M74: 2.601351111 | N74: 0.07823573333
K75: 74 | L75: 2.19 | M75: 2.588337778 | N75: 0.07784533333
K76: 75 | L76: 2.22 | M76: 2.549843636 | N76: 0.07707272121
K77: 76 | L77: 2.25 | M77: 2.498609091 | N77: 0.07572679091
K78: 77 | L78: 2.28 | M78: 2.447374545 | N78: 0.07418975455
K79: 78 | L79: 2.31 | M79: 2.39614 | N79: 0.07265271818
K80: 79 | L80: 2.34 | M80: 2.344905455 | N80: 0.07111568182
K81: 80 | L81: 2.37 | M81: 2.293670909 | N81: 0.06957864545
K82: 81 | L82: 2.4 | M82: 2.242436364 | N82: 0.06804160909
K83: 82 | L83: 2.43 | M83: 2.191201818 | N83: 0.06650457273
K84: 83 | L84: 2.46 | M84: 2.139967273 | N84: 0.06496753636
K85: 84 | L85: 2.49 | M85: 2.088732727 | N85: 0.0634305
K86: 85 | L86: 2.52 | M86: 2.037498182 | N86: 0.06189346364
K87: 86 | L87: 2.55 | M87: 1.986263636 | N87: 0.06035642727

Sheet Интеграл (2)
D1: x | E1: y | K1: № | L1: X1 | M1: Y1 | N1: Площадь трапеции | O1: Интеграл (ряд 2)
A2: № п/п | C2: 3.58 | D2: =G2/60 -> 0 | E2: =B3*C2 -> 3.401 | G2: 0 | K2: 1 | L2: =$D$2 -> 0 | M2: =FORECAST(L2,OFFSET($E$1,MATCH(L2,$D$2:$D$9),,2),OFFSET($D$1,MATCH(L2,$D$2:$D$9),,2)) -> 3.401 | O2: =SUM(N:N) -> 0.4872904099
A3: 1 | B3: 0.95 | C3: 3.54 | D3: 0.03333333333 | E3: 3.2922 | G3: 2 | K3: 2 | L3: =L2+0.03 -> 0.03 | M3: =FORECAST(L3,OFFSET($E$1,MATCH(L3,$D$2:$D$9),,2),OFFSET($D$1,MATCH(L3,$D$2:$D$9),,2)) -> 3.30308 | N3: =1/2*(M3+M2)*(L3-L2) -> 0.1005612
A4: =A3+1 -> 2 | B4: 0.93 | C4: 3.54 | D4: 0.05 | E4: 3.186 | G4: 3 | K4: 3 | L4: =L3+0.03 -> 0.06 | M4: 3.182625 | N4: =1/2*(M4+M3)*(L4-L3) -> 0.097285575
A5: =A4+1 -> 3 | B5: 0.9 | C5: 3.49 | D5: 0.1833333333 | E5: 3.141 | G5: 11 | K5: 4 | L5: 0.09 | M5: 3.1725 | N5: 0.095326875
A6: 4 | B6: 0.9 | C6: 3.46 | D6: 0.4333333333 | E6: 3.0448 | G6: 26 | K6: 5 | L6: 0.12 | M6: 3.162375 | N6: 0.095023125
A7: 5 | B7: 0.88 | C7: 3.38 | D7: 0.9 | E7: 3.042 | G7: 54 | K7: 6 | L7: 0.15 | M7: 3.15225 | N7: 0.094719375
A8: 6 | B8: 0.9 | C8: 3.25 | D8: 1.4 | E8: 2.86 | F8: 3.67 | G8: 84 | K8: 7 | L8: 0.18 | M8: 3.142125 | N8: 0.094415625
A9: 7 | B9: 0.88 | C9: 2.95 | D9: 1.916666667 | E9: 2.419 | F9: 3.55 | G9: 115 | K9: 8 | L9: 0.21 | M9: 3.130738667 | N9: 0.094092955
A10: 8 | B10: 0.82 | C10: 2.5 | D10: 2.233333333 | E10: 1.875 | F10: 3.3 | G10: 134 | K10: 9 | L10: 0.24 | M10: 3.119194667 | N10: 0.093749
A11: 9 | B11: 0.75 | K11: 10 | L11: 0.27 | M11: 3.107650667 | N11: 0.09340268
K12: 11 | L12: 0.3 | M12: 3.096106667 | N12: 0.09305636
K13: 12 | L13: 0.33 | M13: 3.084562667 | N13: 0.09271004
K14: 13 | L14: 0.36 | M14: 3.073018667 | N14: 0.09236372
K15: 14 | L15: 0.39 | M15: 3.061474667 | N15: 0.0920174
K16: 15 | L16: 0.42 | M16: 3.049930667 | N16: 0.09167108
K17: 16 | L17: 0.45 | M17: 3.0447 | N17: 0.09141946
K18: 17 | L18: 0.48 | M18: 3.04452 | N18: 0.0913383
K19: 18 | L19: 0.51 | M19: 3.04434 | N19: 0.0913329
K20: 19 | L20: 0.54 | M20: 3.04416 | N20: 0.0913275
K21: 20 | L21: 0.57 | M21: 3.04398 | N21: 0.0913221
K22: 21 | L22: 0.6 | M22: 3.0438 | N22: 0.0913167
K23: 22 | L23: 0.63 | M23: 3.04362 | N23: 0.0913113
K24: 23 | L24: 0.66 | M24: 3.04344 | N24: 0.0913059
K25: 24 | L25: 0.69 | M25: 3.04326 | N25: 0.0913005
K26: 25 | L26: 0.72 | M26: 3.04308 | N26: 0.0912951
K27: 26 | L27: 0.75 | M27: 3.0429 | N27: 0.0912897
K28: 27 | L28: 0.78 | M28: 3.04272 | N28: 0.0912843
K29: 28 | L29: 0.81 | M29: 3.04254 | N29: 0.0912789
K30: 29 | L30: 0.84 | M30: 3.04236 | N30: 0.0912735
K31: 30 | L31: 0.87 | M31: 3.04218 | N31: 0.0912681
K32: 31 | L32: 0.9 | M32: 3.042 | N32: 0.0912627
K33: 32 | L33: 0.93 | M33: 3.03108 | N33: 0.0910962
K34: 33 | L34: 0.96 | M34: 3.02016 | N34: 0.0907686
K35: 34 | L35: 0.99 | M35: 3.00924 | N35: 0.090441
K36: 35 | L36: 1.02 | M36: 2.99832 | N36: 0.0901134
K37: 36 | L37: 1.05 | M37: 2.9874 | N37: 0.0897858
K38: 37 | L38: 1.08 | M38: 2.97648 | N38: 0.0894582
K39: 38 | L39: 1.11 | M39: 2.96556 | N39: 0.0891306
K40: 39 | L40: 1.14 | M40: 2.95464 | N40: 0.088803
K41: 40 | L41: 1.17 | M41: 2.94372 | N41: 0.0884754
K42: 41 | L42: 1.2 | M42: 2.9328 | N42: 0.0881478
K43: 42 | L43: 1.23 | M43: 2.92188 | N43: 0.0878202
K44: 43 | L44: 1.26 | M44: 2.91096 | N44: 0.0874926
K45: 44 | L45: 1.29 | M45: 2.90004 | N45: 0.087165
K46: 45 | L46: 1.32 | M46: 2.88912 | N46: 0.0868374
K47: 46 | L47: 1.35 | M47: 2.8782 | N47: 0.0865098
K48: 47 | L48: 1.38 | M48: 2.86728 | N48: 0.0861822
K49: 48 | L49: 1.41 | M49: 2.851464516 | N49: 0.08578116774
K50: 49 | L50: 1.44 | M50: 2.825858065 | N50: 0.08515983871
K51: 50 | L51: 1.47 | M51: 2.800251613 | N51: 0.08439164516
K52: 51 | L52: 1.5 | M52: 2.774645161 | N52: 0.08362345161
K53: 52 | L53: 1.53 | M53: 2.74903871 | N53: 0.08285525806
K54: 53 | L54: 1.56 | M54: 2.723432258 | N54: 0.08208706452
K55: 54 | L55: 1.59 | M55: 2.697825806 | N55: 0.08131887097
K56: 55 | L56: 1.62 | M56: 2.672219355 | N56: 0.08055067742
K57: 56 | L57: 1.65 | M57: 2.646612903 | N57: 0.07978248387
K58: 57 | L58: 1.68 | M58: 2.621006452 | N58: 0.07901429032
K59: 58 | L59: 1.71 | M59: 2.5954 | N59: 0.07824609677
K60: 59 | L60: 1.74 | M60: 2.569793548 | N60: 0.07747790323
K61: 60 | L61: 1.77 | M61: 2.544187097 | N61: 0.07670970968
K62: 61 | L62: 1.8 | M62: 2.518580645 | N62: 0.07594151613
K63: 62 | L63: 1.83 | M63: 2.492974194 | N63: 0.07517332258
K64: 63 | L64: 1.86 | M64: 2.467367742 | N64: 0.07440512903
K65: 64 | L65: 1.89 | M65: 2.44176129 | N65: 0.07363693548
K66: 65 | L66: 1.92 | M66: 2.413273684 | N66: 0.07282552462
K67: 66 | L67: 1.95 | M67: =FORECAST(L67,OFFSET($E$1,MATCH(L67,$D$2:$D$9),,2),OFFSET($D$1,MATCH(L67,$D$2:$D$9),,2)) -> 2.361736842 | N67: 0.07162515789
K68: 67 | L68: =L67+0.03 -> 1.98 | M68: 2.3102 | N68: =1/2*(M68+M67)*(L68-L67) -> 0.07007905263
K69: 68 | L69: 2.01 | M69: 2.258663158 | N69: 0.06853294737
K70: 69 | L70: 2.04 | M70: 2.207126316 | N70: 0.06698684211
K71: 70 | L71: 2.07 | M71: 2.155589474 | N71: 0.06544073684
K72: 71 | L72: 2.1 | M72: 2.104052632 | N72: 0.06389463158
K73: 72 | L73: 2.13 | M73: 2.052515789 | N73: 0.06234852632
K74: 73 | L74: =$D$2 -> 0 | M74: 3.401 | N74: -5.807994316
K75: 74 | L75: =L74+0.03 -> 0.03 | M75: 3.30308 | N75: 0.1005612
K76: 75 | L76: =L75+0.03 -> 0.06 | M76: 3.182625 | N76: 0.097285575
